{"text_format":"1","workbook":"xlsx","n_sheets":1,"sheets":["Лист1"],"not_rendered":{"charts":0,"images":0,"macros":1,"external_links":0,"defined_names":0,"comments":0,"pivot_tables":0},"unopened":[],"bounds":{"document_bytes":16777216,"sheet_cells":100000,"rows_first":2000,"rows_last":500,"rows_between":2000,"halvings":0,"cell_chars":16384,"cell_head_chars":4096},"cells_cut":0,"cells_raw":0,"read":"whole","date_system":"1900"}

{"sheet":"Лист1","index":0,"n_rows":15,"n_cols":6,"rows_kept":15,"cut":false,"hidden":false,"merged":[]}
["вариант","значение","этап1","этап2","итог","Столбец1"]
["текст","абвгд",{"$f":"SUBSTITUTE(TRIM(Таблица1[[#This Row],[значение]]),\"..\",\".\")","v":"абвгд"},{"$f":"IFERROR(IF(IF(IFERROR(VALUE(Таблица1[[#This Row],[значение]]),0)>30000,1,0)=1,VALUE(Таблица1[[#This Row],[значение]]),DATEVALUE(LEFT(MID(Таблица1[[#This Row],[этап1]],SEARCH(\".\",Таблица1[[#This Row],[этап1]],2)-2,IF(IFERROR(MID(Таблица1[[#This Row],[этап1]],SEARCH(\"20\",Таблица1[[#This Row],[этап1]],4),1),0)=0,8,10)),10))),\"\")","v":""},{"$f":"IF(Таблица1[[#This Row],[этап2]]=\"\",\"дата не найдена\",Таблица1[[#This Row],[этап2]])","v":"дата не найдена"},{"$f":"gooddate(Таблица1[[#This Row],[значение]])","v":"дата не найдена"}]
["число",123,{"$f":"SUBSTITUTE(TRIM(Таблица1[[#This Row],[значение]]),\"..\",\".\")","v":"123"},{"$f":"IFERROR(IF(IF(IFERROR(VALUE(Таблица1[[#This Row],[значение]]),0)>30000,1,0)=1,VALUE(Таблица1[[#This Row],[значение]]),DATEVALUE(LEFT(MID(Таблица1[[#This Row],[этап1]],SEARCH(\".\",Таблица1[[#This Row],[этап1]],2)-2,IF(IFERROR(MID(Таблица1[[#This Row],[этап1]],SEARCH(\"20\",Таблица1[[#This Row],[этап1]],4),1),0)=0,8,10)),10))),\"\")","v":""},{"$f":"IF(Таблица1[[#This Row],[этап2]]=\"\",\"дата не найдена\",Таблица1[[#This Row],[этап2]])","v":"дата не найдена"},{"$f":"gooddate(Таблица1[[#This Row],[значение]])","v":"дата не найдена"}]
["нормальная дата","28.05.1985",{"$f":"SUBSTITUTE(TRIM(Таблица1[[#This Row],[значение]]),\"..\",\".\")","v":"28.05.1985"},{"$f":"IFERROR(IF(IF(IFERROR(VALUE(Таблица1[[#This Row],[значение]]),0)>30000,1,0)=1,VALUE(Таблица1[[#This Row],[значение]]),DATEVALUE(LEFT(MID(Таблица1[[#This Row],[этап1]],SEARCH(\".\",Таблица1[[#This Row],[этап1]],2)-2,IF(IFERROR(MID(Таблица1[[#This Row],[этап1]],SEARCH(\"20\",Таблица1[[#This Row],[этап1]],4),1),0)=0,8,10)),10))),\"\")","v":31195},{"$f":"IF(Таблица1[[#This Row],[этап2]]=\"\",\"дата не найдена\",Таблица1[[#This Row],[этап2]])","v":"1985-05-28"},{"$f":"gooddate(Таблица1[[#This Row],[значение]])","v":"1985-05-28"}]
["короткий год","20.07.97г",{"$f":"SUBSTITUTE(TRIM(Таблица1[[#This Row],[значение]]),\"..\",\".\")","v":"20.07.97г"},{"$f":"IFERROR(IF(IF(IFERROR(VALUE(Таблица1[[#This Row],[значение]]),0)>30000,1,0)=1,VALUE(Таблица1[[#This Row],[значение]]),DATEVALUE(LEFT(MID(Таблица1[[#This Row],[этап1]],SEARCH(\".\",Таблица1[[#This Row],[этап1]],2)-2,IF(IFERROR(MID(Таблица1[[#This Row],[этап1]],SEARCH(\"20\",Таблица1[[#This Row],[этап1]],4),1),0)=0,8,10)),10))),\"\")","v":35631},{"$f":"IF(Таблица1[[#This Row],[этап2]]=\"\",\"дата не найдена\",Таблица1[[#This Row],[этап2]])","v":"1997-07-20"},{"$f":"gooddate(Таблица1[[#This Row],[значение]])","v":"1997-07-20"}]
["текст после года","01 07 17 ",{"$f":"SUBSTITUTE(TRIM(Таблица1[[#This Row],[значение]]),\"..\",\".\")","v":"01 07 17"},{"$f":"IFERROR(IF(IF(IFERROR(VALUE(Таблица1[[#This Row],[значение]]),0)>30000,1,0)=1,VALUE(Таблица1[[#This Row],[значение]]),DATEVALUE(LEFT(MID(Таблица1[[#This Row],[этап1]],SEARCH(\".\",Таблица1[[#This Row],[этап1]],2)-2,IF(IFERROR(MID(Таблица1[[#This Row],[этап1]],SEARCH(\"20\",Таблица1[[#This Row],[этап1]],4),1),0)=0,8,10)),10))),\"\")","v":""},{"$f":"IF(Таблица1[[#This Row],[этап2]]=\"\",\"дата не найдена\",Таблица1[[#This Row],[этап2]])","v":"дата не найдена"},{"$f":"gooddate(Таблица1[[#This Row],[значение]])","v":"2017-07-01"}]
["точка поле года","01/07/2017.",{"$f":"SUBSTITUTE(TRIM(Таблица1[[#This Row],[значение]]),\"..\",\".\")","v":"01/07/2017."},{"$f":"IFERROR(IF(IF(IFERROR(VALUE(Таблица1[[#This Row],[значение]]),0)>30000,1,0)=1,VALUE(Таблица1[[#This Row],[значение]]),DATEVALUE(LEFT(MID(Таблица1[[#This Row],[этап1]],SEARCH(\".\",Таблица1[[#This Row],[этап1]],2)-2,IF(IFERROR(MID(Таблица1[[#This Row],[этап1]],SEARCH(\"20\",Таблица1[[#This Row],[этап1]],4),1),0)=0,8,10)),10))),\"\")","v":""},{"$f":"IF(Таблица1[[#This Row],[этап2]]=\"\",\"дата не найдена\",Таблица1[[#This Row],[этап2]])","v":"дата не найдена"},{"$f":"gooddate(Таблица1[[#This Row],[значение]])","v":"2017-07-01"}]
["пробел(ы) после года","01.07.2017  ",{"$f":"SUBSTITUTE(TRIM(Таблица1[[#This Row],[значение]]),\"..\",\".\")","v":"01.07.2017"},{"$f":"IFERROR(IF(IF(IFERROR(VALUE(Таблица1[[#This Row],[значение]]),0)>30000,1,0)=1,VALUE(Таблица1[[#This Row],[значение]]),DATEVALUE(LEFT(MID(Таблица1[[#This Row],[этап1]],SEARCH(\".\",Таблица1[[#This Row],[этап1]],2)-2,IF(IFERROR(MID(Таблица1[[#This Row],[этап1]],SEARCH(\"20\",Таблица1[[#This Row],[этап1]],4),1),0)=0,8,10)),10))),\"\")","v":42917},{"$f":"IF(Таблица1[[#This Row],[этап2]]=\"\",\"дата не найдена\",Таблица1[[#This Row],[этап2]])","v":"2017-07-01"},{"$f":"gooddate(Таблица1[[#This Row],[значение]])","v":"2017-07-01"}]
["текст в начале","текст01.07.2017",{"$f":"SUBSTITUTE(TRIM(Таблица1[[#This Row],[значение]]),\"..\",\".\")","v":"текст01.07.2017"},{"$f":"IFERROR(IF(IF(IFERROR(VALUE(Таблица1[[#This Row],[значение]]),0)>30000,1,0)=1,VALUE(Таблица1[[#This Row],[значение]]),DATEVALUE(LEFT(MID(Таблица1[[#This Row],[этап1]],SEARCH(\".\",Таблица1[[#This Row],[этап1]],2)-2,IF(IFERROR(MID(Таблица1[[#This Row],[этап1]],SEARCH(\"20\",Таблица1[[#This Row],[этап1]],4),1),0)=0,8,10)),10))),\"\")","v":42917},{"$f":"IF(Таблица1[[#This Row],[этап2]]=\"\",\"дата не найдена\",Таблица1[[#This Row],[этап2]])","v":"2017-07-01"},{"$f":"gooddate(Таблица1[[#This Row],[значение]])","v":"2017-07-01"}]
["точка в начале",".01.07.2017",{"$f":"SUBSTITUTE(TRIM(Таблица1[[#This Row],[значение]]),\"..\",\".\")","v":".01.07.2017"},{"$f":"IFERROR(IF(IF(IFERROR(VALUE(Таблица1[[#This Row],[значение]]),0)>30000,1,0)=1,VALUE(Таблица1[[#This Row],[значение]]),DATEVALUE(LEFT(MID(Таблица1[[#This Row],[этап1]],SEARCH(\".\",Таблица1[[#This Row],[этап1]],2)-2,IF(IFERROR(MID(Таблица1[[#This Row],[этап1]],SEARCH(\"20\",Таблица1[[#This Row],[этап1]],4),1),0)=0,8,10)),10))),\"\")","v":42917},{"$f":"IF(Таблица1[[#This Row],[этап2]]=\"\",\"дата не найдена\",Таблица1[[#This Row],[этап2]])","v":"2017-07-01"},{"$f":"gooddate(Таблица1[[#This Row],[значение]])","v":"2017-07-01"}]
["пробел(ы) в начале","   31.12.2017",{"$f":"SUBSTITUTE(TRIM(Таблица1[[#This Row],[значение]]),\"..\",\".\")","v":"31.12.2017"},{"$f":"IFERROR(IF(IF(IFERROR(VALUE(Таблица1[[#This Row],[значение]]),0)>30000,1,0)=1,VALUE(Таблица1[[#This Row],[значение]]),DATEVALUE(LEFT(MID(Таблица1[[#This Row],[этап1]],SEARCH(\".\",Таблица1[[#This Row],[этап1]],2)-2,IF(IFERROR(MID(Таблица1[[#This Row],[этап1]],SEARCH(\"20\",Таблица1[[#This Row],[этап1]],4),1),0)=0,8,10)),10))),\"\")","v":43100},{"$f":"IF(Таблица1[[#This Row],[этап2]]=\"\",\"дата не найдена\",Таблица1[[#This Row],[этап2]])","v":"2017-12-31"},{"$f":"gooddate(Таблица1[[#This Row],[значение]])","v":"2017-12-31"}]
["лишняя точка после дня","31..12.2017",{"$f":"SUBSTITUTE(TRIM(Таблица1[[#This Row],[значение]]),\"..\",\".\")","v":"31.12.2017"},{"$f":"IFERROR(IF(IF(IFERROR(VALUE(Таблица1[[#This Row],[значение]]),0)>30000,1,0)=1,VALUE(Таблица1[[#This Row],[значение]]),DATEVALUE(LEFT(MID(Таблица1[[#This Row],[этап1]],SEARCH(\".\",Таблица1[[#This Row],[этап1]],2)-2,IF(IFERROR(MID(Таблица1[[#This Row],[этап1]],SEARCH(\"20\",Таблица1[[#This Row],[этап1]],4),1),0)=0,8,10)),10))),\"\")","v":43100},{"$f":"IF(Таблица1[[#This Row],[этап2]]=\"\",\"дата не найдена\",Таблица1[[#This Row],[этап2]])","v":"2017-12-31"},{"$f":"gooddate(Таблица1[[#This Row],[значение]])","v":"2017-12-31"}]
["лишняя точка после месяца","31.12..2017",{"$f":"SUBSTITUTE(TRIM(Таблица1[[#This Row],[значение]]),\"..\",\".\")","v":"31.12.2017"},{"$f":"IFERROR(IF(IF(IFERROR(VALUE(Таблица1[[#This Row],[значение]]),0)>30000,1,0)=1,VALUE(Таблица1[[#This Row],[значение]]),DATEVALUE(LEFT(MID(Таблица1[[#This Row],[этап1]],SEARCH(\".\",Таблица1[[#This Row],[этап1]],2)-2,IF(IFERROR(MID(Таблица1[[#This Row],[этап1]],SEARCH(\"20\",Таблица1[[#This Row],[этап1]],4),1),0)=0,8,10)),10))),\"\")","v":43100},{"$f":"IF(Таблица1[[#This Row],[этап2]]=\"\",\"дата не найдена\",Таблица1[[#This Row],[этап2]])","v":"2017-12-31"},{"$f":"gooddate(Таблица1[[#This Row],[значение]])","v":"2017-12-31"}]
["лишние точки","31..12..2017",{"$f":"SUBSTITUTE(TRIM(Таблица1[[#This Row],[значение]]),\"..\",\".\")","v":"31.12.2017"},{"$f":"IFERROR(IF(IF(IFERROR(VALUE(Таблица1[[#This Row],[значение]]),0)>30000,1,0)=1,VALUE(Таблица1[[#This Row],[значение]]),DATEVALUE(LEFT(MID(Таблица1[[#This Row],[этап1]],SEARCH(\".\",Таблица1[[#This Row],[этап1]],2)-2,IF(IFERROR(MID(Таблица1[[#This Row],[этап1]],SEARCH(\"20\",Таблица1[[#This Row],[этап1]],4),1),0)=0,8,10)),10))),\"\")","v":43100},{"$f":"IF(Таблица1[[#This Row],[этап2]]=\"\",\"дата не найдена\",Таблица1[[#This Row],[этап2]])","v":"2017-12-31"},{"$f":"gooddate(Таблица1[[#This Row],[значение]])","v":"2017-12-31"}]
["еще вариант?",null,{"$f":"SUBSTITUTE(TRIM(Таблица1[[#This Row],[значение]]),\"..\",\".\")","v":""},{"$f":"IFERROR(IF(IF(IFERROR(VALUE(Таблица1[[#This Row],[значение]]),0)>30000,1,0)=1,VALUE(Таблица1[[#This Row],[значение]]),DATEVALUE(LEFT(MID(Таблица1[[#This Row],[этап1]],SEARCH(\".\",Таблица1[[#This Row],[этап1]],2)-2,IF(IFERROR(MID(Таблица1[[#This Row],[этап1]],SEARCH(\"20\",Таблица1[[#This Row],[этап1]],4),1),0)=0,8,10)),10))),\"\")","v":""},{"$f":"IF(Таблица1[[#This Row],[этап2]]=\"\",\"дата не найдена\",Таблица1[[#This Row],[этап2]])","v":"дата не найдена"},{"$f":"gooddate(Таблица1[[#This Row],[значение]])","v":"дата не найдена"}]